bitfinex/quotes_ETHUSD_20241120
["timestamp","ask_amount","ask_price","bid_price","bid_amount"]
[1732097592849,0.03207955,3118.5,3118.4,4.75121351]
[1732097593350,0.03207955,3118.5,3118.4,4.81534245]
[1732097593511,0.03207955,3118.5,3118.4,4.75121351]
[1732097594426,0.03207955,3118.5,3118.4,4.81533959]
[1732097595044,0.03207955,3118.5,3118.4,7.81533959]
[1732097595280,0.03207955,3118.5,3118.4,7.51184839]
[1732097595459,0.03207955,3118.5,3118.4,7.75103886]
[1732097600633,0.03207955,3118.5,3118.4,7.76103886]
[1732097601773,0.03207955,3118.5,3118.4,9.09246865]
[1732097602291,0.03207955,3118.5,3118.4,9.41266865]
[1732097602454,0.03207955,3118.5,3118.4,8.08123886]
[1732097602786,0.03207955,3118.5,3118.4,7.84204839]
[1732097603092,0.03207955,3118.5,3118.4,7.76084331]
[1732097603256,0.03207955,3118.5,3118.4,7.51184839]
[1732097603657,0.03207955,3118.5,3118.4,7.75084407]
[1732097607294,0.03207955,3118.5,3118.4,4.54407407]
[1732097607651,0.03207955,3118.5,3118.4,7.75084407]
[1732097607844,0.03207955,3118.5,3118.4,4.54407407]
[1732097608249,0.03207955,3118.5,3118.4,7.75084407]
[1732097608450,0.03207955,3118.5,3118.4,4.75084407]
[1732097609970,0.03207955,3118.5,3118.4,4.81496912]
[1732097612302,0.03207955,3118.5,3118.4,7.81496912]
[1732097612506,0.03207955,3118.5,3118.4,7.75084407]
[1732097617263,0.03207955,3118.5,3118.4,7.51184839]
[1732097617512,0.03207955,3118.5,3118.4,7.75146392]
[1732097618589,3.20595,3119.2,3118.6,3.20656]
[1732097618919,3.20595,3119.2,3118.7,3.51659485]
[1732097619215,3.20595,3119.2,3118.8,0.23961553]
[1732097619413,3.20595,3119.2,3118.9,0.23961553]
[1732097619706,3.20595,3119.2,3119.0,0.23961553]
[1732097619864,3.20595,3119.2,3119.1,0.30996802]
[1732097620408,3.20595,3119.2,3119.1,0.34204757]
[1732097620612,3.23802955,3119.2,3119.1,0.34204757]
[1732097625037,4.59332955,3119.2,3119.1,0.34204757]
[1732097625192,4.59332955,3119.2,3119.1,0.10243204]
[1732097625389,4.59332955,3119.2,3119.1,0.03207955]
[1732097628149,5.93475934,3119.2,3119.1,0.03207955]
[1732097629016,8.93475934,3119.2,3119.1,0.03207955]
[1732097630139,9.26933041,3119.2,3119.1,0.03207955]
[1732097634219,9.26933041,3119.2,3119.1,9.55e-06]
[1732097635856,3.96656,3118.6,3118.5,0.06792045]
[1732097636060,5.84798979,3118.6,3118.5,0.06792045]
[1732097636375,5.89006934,3118.6,3118.5,0.06792045]
[1732097637572,5.89006934,3118.6,3118.5,0.1]
[1732097637927,3.78863955,3118.6,3118.5,0.1]
[1732097640483,4.60633955,3118.6,3118.5,0.1]
[1732097640651,7.60633955,3118.6,3118.5,0.1]
[1732097641239,9.27239039,3118.6,3118.5,0.1]
[1732097641841,3.2078,3117.4,3117.3,0.7892]
[1732097642037,3.2078,3117.4,3117.3,1.02830545]
[1732097642242,3.2078,3117.4,3117.3,1.09507535]
[1732097642243,3.23987955,3117.4,3117.3,1.09507535]
[1732097643603,3.23987955,3117.4,3117.3,1.1271549]
[1732097646199,3.23987955,3117.4,3117.3,0.88804945]
[1732097646810,3.23987955,3117.4,3117.3,1.12706964]
[1732097647317,3.23987955,3117.4,3117.3,0.03207955]
[1732097647673,3.23987955,3117.4,3117.3,0.09883409]
[1732097647869,3.23987955,3117.4,3117.3,0.03207955]
[1732097648071,3.23987955,3117.4,3117.3,0.09883409]
[1732097648300,3.23987955,3117.4,3117.3,0.03207955]
[1732097648495,3.23987955,3117.4,3117.3,0.09883409]
[1732097648702,3.23987955,3117.4,3117.3,0.03207955]
[1732097648910,3.23987955,3117.4,3117.3,0.09883409]
[1732097649072,3.23987955,3117.4,3117.3,0.03207955]
[1732097649268,3.23987955,3117.4,3117.3,0.09883409]
[1732097649473,3.23987955,3117.4,3117.3,0.03207955]
[1732097649673,3.23987955,3117.4,3117.3,0.09883409]
[1732097650393,3.23987955,3117.4,3117.3,0.03207955]
[1732097656835,3.57454391,3117.4,3117.3,0.03207955]
[1732097659652,3.23987955,3117.4,3117.3,0.03207955]
[1732097659799,3.78987955,3117.4,3117.3,0.03207955]
[1732097661307,6.79987955,3117.4,3117.3,0.03207955]
[1732097661537,6.80987955,3117.4,3117.3,0.03207955]
[1732097662922,7.56507955,3117.4,3117.3,0.03207955]
[1732097664717,8.89802924,3117.4,3117.3,0.03207955]
[1732097668223,7.55507955,3117.4,3117.3,0.03207955]
[1732097668436,3.79987955,3117.4,3117.3,0.03207955]
[1732097668745,3.23987955,3117.4,3117.3,0.03207955]
[1732097673247,4.57407955,3117.4,3117.3,0.03207955]
[1732097674585,4.57407955,3117.4,3117.3,0.02728457]
[1732097679981,7.57407955,3117.4,3117.3,0.02728457]
[1732097682480,7.57407955,3117.4,3117.3,4.57e-06]
[1732097687890,7.66892204,3117.4,3117.3,4.57e-06]
[1732097692733,7.57407955,3117.4,3117.3,4.57e-06]
[1732097692945,8.90718063,3117.4,3117.3,4.57e-06]
[1732097697773,7.57407955,3117.4,3117.3,4.57e-06]
[1732097697938,8.90718063,3117.4,3117.3,4.57e-06]
[1732097698364,6.41724,3116.6,3115.6,0.06417848]
[1732097698571,3.20961,3115.7,3115.4,0.7531]
[1732097698778,3.20965,3115.6,3115.4,0.7531]
[1732097699284,3.24168955,3115.7,3115.4,0.7531]
[1732097699504,0.03207955,3115.7,3115.4,0.7531]
[1732097700112,0.03207955,3115.7,3115.5,0.396306]
[1732097700274,0.03207955,3115.7,3115.6,0.7804]
[1732097700454,0.03207955,3115.7,3115.6,0.81247955]
[1732097701406,3.24162955,3115.7,3115.6,0.81247955]
[1732097701904,0.03207955,3115.7,3115.6,0.81247955]
[1732097703622,0.03207955,3115.7,3115.6,4.02212955]
[1732097703768,0.03207955,3115.7,3115.6,1.53567751]
[1732097704105,0.03207955,3115.7,3115.6,0.81247955]
[1732097704320,0.03207955,3115.7,3115.6,4.02212955]
[1732097706368,0.03207955,3115.7,3115.6,0.81247955]
[1732097706930,0.03207955,3115.7,3115.6,4.02212955]
[1732097707137,0.03207955,3115.7,3115.6,4.7453105]
[1732097707629,0.03207955,3115.7,3115.6,4.80949288]
[1732097710533,0.03207955,3115.7,3115.6,4.7453105]
[1732097711041,0.03207955,3115.7,3115.6,7.8094905]
[1732097711329,0.03207955,3115.7,3115.6,7.7453105]
[1732097711531,0.03207955,3115.7,3115.6,10.6443475]
[1732097711724,3.0,3117.1,3115.6,10.6443475]
[1732097711725,3.20818,3117.1,3116.4,0.7968]
[1732097712029,3.20798,3117.3,3116.6,4.00535]
[1732097712202,3.20743,3117.8,3116.4,0.09625143]
[1732097712203,3.96583,3117.8,3116.8,0.7968]
[1732097712393,3.20796,3117.3,3116.8,0.82887955]
[1732097712596,6.41498,3117.7,3116.9,0.06433551]
[1732097712796,3.20797,3117.3,3116.9,0.06433551]
[1732097713910,3.24004955,3117.3,3116.9,0.06433551]
[1732097714105,3.24004955,3117.3,3116.9,0.47450602]
[1732097715443,0.03207955,3117.3,3116.9,0.47450602]
[1732097715935,3.23998955,3117.3,3116.9,0.47450602]
[1732097716942,3.20805,3117.2,3116.9,0.47450602]
[1732097717245,3.20805,3117.2,3116.9,0.06433551]
[1732097719037,0.03207955,3117.3,3116.9,0.06433551]
[1732097719337,3.23997955,3117.3,3116.8,0.82887955]
[1732097719502,3.23997955,3117.3,3116.8,1.23261851]
[1732097719705,3.23997955,3117.3,3116.9,0.06428037]
[1732097720940,0.03207955,3117.3,3116.9,0.06428037]
[1732097721140,0.03207955,3117.3,3117.0,0.8313]
[1732097721304,0.03207955,3117.3,3117.0,0.86337955]
[1732097721603,0.03207955,3117.3,3117.1,0.06200342]
[1732097721798,0.03207955,3117.3,3117.1,0.09408297]
[1732097723164,3.208,3117.2,3117.1,0.09408297]
[1732097723768,3.9677,3117.2,3117.1,0.09408297]
[1732097723914,3.208,3117.2,3117.1,0.09408297]
[1732097724123,3.208,3117.2,3117.1,0.03207955]
[1732097724622,3.208,3117.2,3117.1,0.09408297]
[1732097724822,0.03207955,3117.3,3117.1,0.09408297]
[1732097725057,0.03207955,3117.3,3117.1,0.78907955]
[1732097725058,3.23998955,3117.3,3117.1,0.78907955]
[1732097725358,0.03207955,3117.3,3117.2,0.06195916]
[1732097725869,0.03207955,3117.3,3117.1,0.78907955]
[1732097726040,0.03207955,3117.3,3117.2,0.06195916]
[1732097727070,0.03207955,3117.3,3117.2,0.03207955]
[1732097727670,0.03207955,3117.3,3117.2,0.09403871]
[1732097728420,0.03207955,3117.3,3117.2,1.32094558]
[1732097728738,0.03207955,3117.3,3117.2,4.52894558]
[1732097729066,0.03207955,3117.3,3117.2,4.12303871]
[1732097729728,0.03207955,3117.3,3117.2,0.91503871]
[1732097730773,0.03207955,3117.3,3117.2,4.12303871]
[1732097730981,0.03207955,3117.3,3117.2,0.91503871]
[1732097733563,3.23997955,3117.3,3117.2,0.09403871]
[1732097734545,3.23997955,3117.3,3117.2,0.03207955]
[1732097734727,3.23997955,3117.3,3117.2,0.09193728]
[1732097734926,0.03207955,3117.3,3117.2,0.03207955]
[1732097735444,0.03207955,3117.3,3117.2,0.09193728]
[1732097736689,3.23997955,3117.3,3117.2,0.09193728]
[1732097737757,4.02467955,3117.3,3117.2,0.09193728]
[1732097738174,4.02467955,3117.3,3117.2,0.03207955]
[1732097738502,0.03207955,3117.3,3117.2,0.03207955]
[1732097738891,0.03207955,3117.3,3117.2,3.29993728]
[1732097739200,0.03207955,3117.3,3117.2,4.43733328]
[1732097739393,0.03207955,3117.3,3117.2,4.49719101]
[1732097757919,0.03207955,3117.3,3117.2,1.28919101]
[1732097758218,0.03207955,3117.3,3117.2,0.87903728]
[1732097758907,0.03207955,3117.3,3117.2,1.11874954]
[1732097759481,0.03207955,3117.3,3117.2,0.33164954]
[1732097759916,3.23997955,3117.3,3117.2,0.33164954]
[1732097760386,0.03207955,3117.3,3117.2,0.33164954]
[1732097761086,0.03207955,3117.3,3117.2,0.09193728]
[1732097761394,0.03207955,3117.3,3117.2,0.33166573]
[1732097764114,3.23997955,3117.3,3117.2,0.33166573]
[1732097768474,0.03207955,3117.3,3117.2,1.12246573]
[1732097769198,0.03207955,3117.3,3117.2,1.5555213]
[1732097770214,0.03207955,3117.3,3117.2,1.31579285]
[1732097771586,0.03207955,3117.3,3117.2,4.58794518]
[1732097771804,0.03207955,3117.3,3117.2,4.52379285]
[1732097772204,0.03207955,3117.3,3117.2,4.5879407]
[1732097772402,0.03207955,3117.3,3117.2,7.5879407]
[1732097772606,0.03207955,3117.3,3117.2,7.52379285]
[1732097776473,0.03207955,3117.3,3117.2,7.84379285]
[1732097781127,0.03207955,3117.3,3117.2,8.39379285]
[1732097783575,0.03207955,3117.3,3117.2,8.49009931]
[1732097784681,0.03207955,3117.3,3117.2,8.93214178]
[1732097785840,0.03207955,3117.3,3117.2,12.30114178]
[1732097785841,9.55e-06,3117.3,3117.2,12.30114178]
[1732097786035,0.8156,3118.8,3118.2,0.8123]
[1732097786248,0.8156,3118.8,3118.4,2.88604]
[1732097786739,0.8156,3118.8,3118.5,0.0532025]
[1732097786961,0.8156,3118.8,3118.5,2.9391725]
[1732097787265,3.20623,3119.0,3118.5,2.9391725]
[1732097787464,3.96463,3119.0,3118.5,0.0532025]
[1732097788371,3.99670955,3119.0,3118.5,0.0532025]
[1732097789666,3.99670955,3119.0,3118.5,2.9392025]
[1732097789867,3.99670955,3119.0,3118.5,0.0532025]
[1732097790107,0.79047955,3119.0,3118.5,2.9392025]
[1732097790404,0.79047955,3119.0,3118.5,0.65033871]
[1732097790915,3.99666955,3119.0,3118.5,0.65033871]
[1732097791066,3.99666955,3119.0,3118.5,0.0532025]
[1732097791274,0.79047955,3119.0,3118.5,0.0532025]
[1732097792377,0.79047955,3119.0,3118.5,2.9391925]
[1732097794753,0.03207955,3119.0,3118.7,2.88574]
[1732097794952,0.03207955,3119.0,3118.9,2.88563]
[1732097795201,0.03207955,3119.0,3118.9,2.93850335]
[1732097795644,0.03207955,3119.0,3118.9,2.9705829]
[1732097800399,4.06762955,3119.0,3118.9,0.0849529]
[1732097800950,4.06762955,3119.0,3118.9,0.03207955]
[1732097801859,4.06762955,3119.0,3118.9,0.08474037]
[1732097802168,4.06762955,3119.0,3118.9,0.03207955]
[1732097802662,4.06762955,3119.0,3118.9,0.08474037]
[1732097802863,4.06762955,3119.0,3118.9,0.03207955]
[1732097803094,4.06762955,3119.0,3118.9,0.08474037]
[1732097803426,0.86147955,3119.0,3118.9,0.08474037]
[1732097807111,4.06762955,3119.0,3118.9,0.08474037]
[1732097807811,0.86147955,3119.0,3118.9,0.08474037]
[1732097808509,4.06762955,3119.0,3118.9,0.08474037]
[1732097808711,4.06762955,3119.0,3118.9,0.03207955]
[1732097809051,4.06762955,3119.0,3118.9,0.08474037]
[1732097810793,3.23822955,3119.0,3118.9,0.08474037]
[1732097811433,0.03207955,3119.0,3118.9,0.08474037]
[1732097815097,3.23822955,3119.0,3118.9,0.08474037]
[1732097820530,0.03207955,3119.0,3118.9,0.08474037]
[1732097820732,0.03207955,3119.0,3118.9,0.38179241]
[1732097821629,0.03207955,3119.0,3118.9,3.33154035]
[1732097821831,0.03207955,3119.0,3118.9,3.26742241]
[1732097822144,0.03207955,3119.0,3118.9,3.507221]
[1732097822356,0.03207955,3119.0,3118.9,3.26742241]
[1732097822551,0.03207955,3119.0,3118.9,0.38179241]
[1732097823135,0.03207955,3119.0,3118.9,3.26742241]
[1732097823801,0.03207955,3119.0,3118.9,0.38179241]
[1732097825220,0.03207955,3119.0,3118.9,3.26742241]
[1732097827386,0.03207955,3119.0,3118.9,6.33153815]
[1732097827580,0.03207955,3119.0,3118.9,7.10083815]
[1732097827735,0.03207955,3119.0,3118.9,7.03672241]
[1732097831548,0.03207955,3119.0,3118.9,1.15109241]
[1732097831740,0.03207955,3119.0,3118.9,0.38179241]
[1732097832638,0.03207955,3119.0,3118.9,0.08474037]
[1732097833061,0.82027955,3119.0,3118.9,0.08474037]
[1732097833380,4.02642955,3119.0,3118.9,0.08474037]
[1732097834472,4.02642955,3119.0,3118.9,0.03207955]
[1732097834877,4.02642955,3119.0,3118.9,0.08507321]
[1732097835089,4.02642955,3119.0,3118.9,0.03207955]
[1732097835680,4.02642955,3119.0,3118.9,0.08507321]
[1732097835856,4.02642955,3119.0,3118.9,0.03207955]
[1732097836034,4.02642955,3119.0,3118.9,0.08507321]
[1732097836238,4.02642955,3119.0,3118.9,0.03207955]
[1732097836441,4.02642955,3119.0,3118.9,0.08507321]
[1732097836675,0.03207955,3119.0,3118.9,0.03207955]
[1732097837275,0.03207955,3119.0,3118.9,0.08507321]
[1732097837485,0.03207955,3119.0,3118.9,0.03207955]
[1732097837996,0.03207955,3119.0,3118.9,0.08507321]
[1732097838277,3.23822955,3119.0,3118.9,0.03207955]
[1732097838484,3.23822955,3119.0,3118.9,0.08507321]
[1732097838685,0.03207955,3119.0,3118.9,0.03207955]
[1732097838837,0.03207955,3119.0,3118.9,0.08507321]
[1732097839042,0.03207955,3119.0,3118.9,0.03207955]
[1732097839278,0.03207955,3119.0,3118.9,0.08507321]
[1732097839279,3.23822955,3119.0,3118.9,0.08507321]
[1732097839487,3.23822955,3119.0,3118.9,0.03207955]
[1732097839642,3.23822955,3119.0,3118.9,0.08507321]
[1732097839844,3.23822955,3119.0,3118.9,0.03207955]
[1732097840084,4.05402955,3119.0,3118.9,0.08507321]
[1732097840289,4.05402955,3119.0,3118.9,0.03207955]
[1732097841394,0.84787955,3119.0,3118.9,0.03207955]
[1732097841860,0.03207955,3119.0,3118.9,0.08479307]
[1732097842046,0.03207955,3119.0,3118.9,0.41125386]
[1732097842251,0.03207955,3119.0,3118.9,0.46411507]
[1732097842993,0.03207955,3119.0,3118.9,0.08494076]
[1732097845658,0.03207955,3119.0,3118.9,2.97057076]
[1732097846127,0.03207955,3119.0,3118.9,3.78547076]
[1732097848648,0.03207955,3119.0,3118.9,0.89984076]
[1732097849008,0.03207955,3119.0,3118.9,0.08494076]
[1732097850771,0.03207955,3119.0,3118.9,0.38201484]
[1732097852427,0.03207955,3119.0,3118.9,3.26764484]
[1732097852638,0.03207955,3119.0,3118.9,4.02704484]
[1732097852928,0.03207955,3119.0,3118.9,7.02704484]
[1732097859423,0.03207955,3119.0,3118.9,7.34704484]
[1732097860523,0.03207955,3119.0,3118.9,6.58764484]
[1732097860730,0.03207955,3119.0,3118.9,7.34124484]
[1732097863205,0.03207955,3119.0,3118.9,8.67161906]
[1732097866660,0.03207955,3119.0,3118.9,12.04061906]
[1732097866965,0.03207955,3119.0,3118.9,8.67161906]
[1732097869125,0.03207955,3119.0,3118.9,7.34124484]
[1732097871470,0.03207955,3119.0,3118.9,6.58764484]
[1732097876073,0.03207955,3119.0,3118.9,3.70201484]
[1732097876275,0.03207955,3119.0,3118.9,0.40494076]
[1732097876473,0.03207955,3119.0,3118.9,3.29057076]
[1732097876781,0.03207955,3119.0,3118.9,6.29057076]
[1732097878269,0.84817955,3119.0,3118.9,0.40494076]
[1732097881168,4.05432955,3119.0,3118.9,0.08494076]
[1732097882269,0.84817955,3119.0,3118.9,0.08494076]
[1732097882442,0.03207955,3119.0,3118.9,3.76637076]
[1732097882635,0.03207955,3119.0,3118.9,4.56461726]
[1732097886268,0.03207955,3119.0,3118.9,3.76881726]
[1732097887279,0.82577955,3119.0,3118.9,3.76881726]
[1732097887480,0.03207955,3119.0,3118.9,2.97057076]
[1732097889190,0.03207955,3119.0,3118.9,0.08494076]
[1732097890084,0.03207955,3119.0,3118.9,2.97057076]
[1732097891296,0.03207955,3119.0,3118.9,3.55620784]
[1732097892285,0.03207955,3119.0,3118.9,2.97057076]
[1732097898488,0.03207955,3119.0,3118.9,4.30094498]
[1732097899426,0.03207955,3119.0,3118.9,7.30094498]
[1732097899625,0.03207955,3119.0,3118.9,8.07854498]
[1732097899997,0.03207955,3119.0,3118.9,6.74817076]
[1732097900198,0.03207955,3119.0,3118.9,9.33150606]
[1732097900422,0.03207955,3119.0,3118.9,9.65150606]
[1732097905996,0.03207955,3119.0,3118.9,7.22353184]
[1732097906990,0.03207955,3119.0,3118.9,2.97057076]
[1732097909553,0.03207955,3119.0,3118.9,0.08494076]
[1732097910175,0.84067955,3119.0,3118.9,0.08494076]
[1732097915400,0.03207955,3119.0,3118.9,0.08494076]
[1732097915765,0.03207955,3119.0,3118.9,2.97057076]
[1732097915965,0.03207955,3119.0,3118.9,3.68923126]
[1732097916574,0.03207955,3119.0,3118.9,0.80360126]
[1732097916782,0.03207955,3119.0,3118.9,3.68923126]
[1732097917272,0.03207955,3119.0,3118.9,0.80360126]
[1732097917476,0.03207955,3119.0,3118.9,0.08494076]
[1732097917884,0.03207955,3119.0,3118.9,4.30094498]
[1732097918183,0.03207955,3119.0,3118.9,1.41531498]
[1732097918387,0.03207955,3119.0,3118.9,4.30094498]
[1732097924247,0.03207955,3119.0,3118.9,2.97057076]
[1732097924447,0.03207955,3119.0,3118.9,0.08494076]
[1732097924695,0.86447955,3119.0,3118.9,0.08494076]
[1732097925797,0.03207955,3119.0,3118.9,0.08494076]
[1732097929965,0.03207955,3119.0,3118.9,2.97057076]
[1732097930157,0.03207955,3119.0,3118.9,3.68924026]
[1732097930685,0.03207955,3119.0,3118.9,3.7533612]
[1732097930902,0.03207955,3119.0,3118.9,3.68924026]
[1732097932682,0.03207955,3119.0,3118.9,4.51294026]
[1732097935466,0.03207955,3119.0,3118.9,5.84331448]
[1732097936072,0.03207955,3119.0,3118.9,3.68924026]
[1732097936336,0.03207955,3119.0,3118.9,0.08494076]
[1732097938860,0.03207955,3119.0,3118.9,2.97057076]
[1732097940388,0.03207955,3119.0,3118.9,3.73117076]
[1732097941352,0.03207955,3119.0,3118.9,2.97057076]
[1732097942700,0.03207955,3119.0,3118.9,0.08494076]
[1732097942931,0.84357955,3119.0,3118.9,0.07091442]
[1732097944404,0.03207955,3119.0,3118.9,0.07091442]
[1732097944802,0.79087955,3119.0,3118.9,0.07091442]
[1732097946338,0.03207955,3119.0,3118.9,0.07091442]
[1732097950151,0.03207955,3119.0,3118.9,0.31072073]
[1732097955026,0.03207955,3119.0,3118.9,0.07091442]
[1732097955249,0.03207955,3119.0,3118.9,0.31070906]
[1732097955630,0.03207955,3119.0,3118.9,0.07091442]
[1732097955971,0.03207955,3119.0,3118.9,0.31072904]
[1732097957455,4.05632955,3119.0,3118.9,0.31072904]
[1732097957861,4.05632955,3119.0,3118.9,0.27189417]
[1732097958528,4.05632955,3119.0,3118.9,0.03207955]
[1732097961960,4.60632955,3119.0,3118.9,0.03207955]
[1732097962158,5.93670377,3119.0,3118.9,0.03207955]
[1732097962362,8.94670377,3119.0,3118.9,0.03207955]
[1732097964982,9.04337165,3119.0,3118.9,0.03207955]
[1732097965307,9.04337165,3119.0,3118.9,9.55e-06]
[1732097965857,17.81337165,3119.0,3118.9,9.55e-06]
[1732097966762,19.14374587,3119.0,3118.9,9.55e-06]
[1732097967784,0.55,3117.8,3116.9,0.75]
[1732097967990,6.41596,3117.3,3117.0,0.23908441]
[1732097968163,3.24005955,3117.3,3117.1,0.23908441]
[1732097968564,3.24005955,3117.3,3117.0,0.03202888]
[1732097969366,0.03207955,3117.3,3117.0,0.06410843]
[1732097969573,3.23999955,3117.3,3117.0,0.06410843]
[1732097969801,3.20801,3117.2,3117.0,0.06410843]
[1732097970184,3.23998955,3117.3,3117.0,0.06410843]
[1732097970599,0.03207955,3117.3,3117.0,0.43427527]
[1732097970907,0.03207955,3117.3,3117.1,1.33037422]
[1732097971412,0.03207955,3117.3,3117.1,1.36245377]
[1732097971910,0.03207955,3117.3,3117.2,3.6793]
[1732097972078,0.03207955,3117.3,3117.2,4.51242595]
[1732097972280,0.03207955,3117.3,3117.2,4.5445055]
[1732097972602,0.03207955,3117.3,3117.2,4.5689055]
[1732097973506,0.03207955,3117.3,3117.2,1.6817055]
[1732097973869,0.03207955,3117.3,3117.2,0.84857955]
[1732097975288,0.03207955,3117.3,3117.2,0.03207955]
[1732097976202,3.23997955,3117.3,3117.2,0.03207955]
[1732097982021,0.03207955,3117.3,3117.2,0.03207955]
[1732097984689,0.03207955,3117.3,3117.2,2.91927955]
[1732097985022,0.03207955,3117.3,3117.2,3.71410182]
[1732097987402,0.03207955,3117.3,3117.2,4.49350182]
[1732097994017,0.03207955,3117.3,3117.2,1.60630182]
[1732097994221,0.03207955,3117.3,3117.2,0.81147955]
[1732097996842,0.03207955,3117.3,3117.2,3.69867955]
[1732098000537,3.23997955,3117.3,3117.2,0.03207955]
[1732098000693,3.99817955,3117.3,3117.2,0.03207955]
[1732098000893,0.79027955,3117.3,3117.2,0.03207955]
[1732098001302,3.99817955,3117.3,3117.2,0.03207955]
[1732098004747,0.79027955,3117.3,3117.2,0.03207955]
[1732098006308,3.99817955,3117.3,3117.2,0.03207955]
[1732098006509,0.79027955,3117.3,3117.2,0.03207955]
[1732098007343,3.99817955,3117.3,3117.2,0.03207955]
[1732098009712,3.23997955,3117.3,3117.2,0.03207955]
[1732098010456,5.88375377,3117.3,3117.2,0.03207955]
[1732098010660,4.55337955,3117.3,3117.2,0.03207955]
[1732098010964,8.89375377,3117.3,3117.2,0.03207955]
[1732098011170,8.89375377,3117.3,3117.2,9.55e-06]
[1732098011316,3.20911,3116.2,3115.8,0.7887]
[1732098011711,3.24118955,3116.2,3115.8,0.7887]
[1732098011875,3.24118955,3116.2,3115.5,0.7887]
[1732098011876,0.8102,3116.1,3115.5,0.7887]
[1732098012161,3.20952,3115.8,3115.2,3.70524]
[1732098012371,3.20952,3115.8,3115.2,4.49772142]
[1732098012659,3.24159955,3115.8,3115.2,4.49772142]
[1732098013361,3.24159955,3115.8,3115.2,1.60868142]
[1732098013560,3.20968,3115.6,3115.2,1.60868142]
[1732098013856,3.24175955,3115.6,3115.2,0.84827955]
[1732098014245,3.20976,3115.5,3115.2,0.84827955]
[1732098014423,3.24175955,3115.6,3115.2,0.03207955]
[1732098014622,3.20987,3115.4,3115.2,0.03207955]
[1732098014847,3.20996,3115.3,3115.2,0.03207955]
[1732098015366,0.03207955,3115.4,3115.2,0.03207955]
[1732098016370,0.03207955,3115.4,3115.2,0.32420151]
[1732098016570,0.03207955,3115.4,3115.3,3.70006]
[1732098016868,0.03207955,3115.4,3115.3,3.73213955]
[1732098017424,0.03207955,3115.4,3115.3,6.6218913]
[1732098019058,3.20891,3116.4,3115.7,2.88853]
[1732098019217,3.20895,3116.3,3115.7,2.88853]
[1732098019420,3.20891,3116.4,3115.7,2.92060955]
[1732098019644,3.20899,3116.3,3115.7,2.92060955]
[1732098019863,3.20881,3116.5,3115.8,2.88849]
[1732098020027,3.20884,3116.4,3115.8,0.7621]
[1732098020367,3.20884,3116.4,3115.8,0.79417955]
[1732098020668,3.20894,3116.3,3115.8,0.79417955]
[1732098021263,3.20894,3116.3,3115.8,1.1916566]
[1732098021471,0.03207955,3116.4,3115.8,1.25584498]
[1732098021652,0.03207955,3116.4,3116.0,2.88822]
[1732098021964,0.03207955,3116.4,3116.3,3.63864]
[1732098022160,0.03207955,3116.4,3116.3,4.002504]
[1732098022373,0.03207955,3116.4,3116.3,4.03458355]
[1732098023034,0.03207955,3116.4,3116.3,4.09875879]
[1732098023251,0.03207955,3116.4,3116.3,4.0987533]
[1732098024970,0.03207955,3116.4,3116.3,4.03458355]
[1732098026771,0.03207955,3116.4,3116.3,3.28398355]
[1732098027100,0.03207955,3116.4,3116.3,2.92011955]
[1732098028416,0.03207955,3116.4,3116.3,0.03207955]
[1732098032115,3.24090955,3116.4,3116.3,0.03207955]
[1732098035418,4.02730955,3116.4,3116.3,0.03207955]
[1732098037621,4.57730955,3116.4,3116.3,0.03207955]
[1732098038498,4.02730955,3116.4,3116.3,0.03207955]
[1732098040126,4.36208684,3116.4,3116.3,0.03207955]
[1732098040326,3.57568684,3116.4,3116.3,0.03207955]
[1732098041392,0.36685684,3116.4,3116.3,0.03207955]
[1732098042031,3.24090955,3116.4,3116.3,0.03207955]
[1732098045235,3.79090955,3116.4,3116.3,0.03207955]
[1732098046627,3.24090955,3116.4,3116.3,0.03207955]
[1732098046832,1.1162508,3117.5,3116.3,2.9218313]
[1732098047041,1.1162508,3117.5,3117.0,2.88736]
[1732098047042,0.3347508,3117.5,3117.0,2.88736]
[1732098047244,0.3347508,3117.5,3117.1,0.8109]
[1732098047386,3.20735,3117.9,3117.1,3.96964981]
[1732098047727,3.20739,3117.8,3117.2,0.23946026]
[1732098047926,3.20739,3117.8,3117.3,0.23946026]
[1732098048143,3.20739,3117.8,3117.4,0.23946026]
[1732098048302,3.20739,3117.8,3117.3,0.03207955]
[1732098048493,3.9887,3118.0,3117.3,2.91916955]
[1732098048830,3.20745,3117.8,3117.3,0.03207955]
[1732098049534,3.23952955,3117.8,3117.3,0.03207955]
[1732098049695,3.20762,3117.6,3117.3,0.03207955]
[1732098050032,3.23969955,3117.6,3117.3,0.03207955]
[1732098050737,3.2078,3117.4,3117.3,0.03207955]
[1732098050945,4.03107955,3117.4,3117.3,0.03207955]
[1732098051234,4.58107955,3117.4,3117.3,0.03207955]
[1732098052539,7.59107955,3117.4,3117.3,0.03207955]
[1732098057815,7.58107955,3117.4,3117.3,0.03207955]
[1732098058325,7.03107955,3117.4,3117.3,0.03207955]
[1732098059742,7.58107955,3117.4,3117.3,0.03207955]
[1732098059905,6.78987955,3117.4,3117.3,0.03207955]
[1732098060306,6.78987955,3117.4,3117.3,0.09257217]
[1732098060307,6.7578,3117.4,3117.3,0.09257217]
[1732098060554,3.2078,3117.4,3117.3,0.06049262]
[1732098060754,3.7578,3117.4,3117.3,0.06049262]
[1732098063359,4.5351,3117.4,3117.3,0.06049262]
[1732098063675,7.5451,3117.4,3117.3,0.06049262]
[1732098064656,16.3151,3117.4,3117.3,0.06049262]
[1732098065419,16.6498711,3117.4,3117.3,0.06049262]
[1732098066670,16.6498711,3117.4,3117.3,2.62e-06]
[1732098067372,3.20928,3116.0,3115.7,0.7767]
[1732098067726,3.209,3116.3,3115.7,0.7767]
[1732098068043,3.20929,3116.0,3115.7,0.7767]
[1732098068256,3.20942,3115.9,3115.7,0.7767]
[1732098068976,3.20929,3116.0,3115.7,0.7767]
[1732098069284,3.20906,3116.2,3115.7,0.7767]
[1732098070041,3.20916,3116.1,3115.7,0.7767]
[1732098070320,3.20924,3116.0,3115.7,0.7767]
[1732098073375,3.20906,3116.2,3115.7,0.7767]
[1732098074193,3.20884,3116.4,3115.7,1.143231]
[1732098074475,3.20865,3116.6,3115.8,3.64119]
[1732098074676,3.20872,3116.5,3116.0,0.7527]
[1732098075094,3.20886,3116.4,3116.0,0.7527]
[1732098075569,3.20865,3116.6,3116.0,3.64096]
[1732098075783,3.20873,3116.5,3116.0,3.64096]
[1732098075991,3.20865,3116.6,3116.0,0.7527]
[1732098075992,3.20883,3116.4,3116.0,0.7527]
[1732098077149,3.20874,3116.5,3116.0,0.7527]
[1732098078532,3.20883,3116.4,3116.0,0.7527]
[1732098080815,0.33477859,3116.4,3116.0,0.7527]
[1732098081453,0.33477859,3116.4,3116.0,3.641]
[1732098081652,6.41754,3116.5,3116.0,0.7527]
[1732098082019,3.20883,3116.4,3116.0,0.7527]
[1732098082804,3.20893,3116.3,3116.0,0.7527]
[1732098083408,0.33477651,3116.9,3116.4,2.88789]
[1732098083636,3.20828,3117.0,3116.5,0.8049]